{"text_format":"3","workbook":"xlsx","n_sheets":6,"sheets":["Instrumentpanel","Försäljning","Intäkter","Utgifter","Skatter","Kategorier"],"not_rendered":{"images":1,"defined_names":34},"read":"whole","date_system":"1900"}

{"sheet":"Instrumentpanel","index":0,"n_rows":19,"n_cols":8,"rows_kept":19,"merged":[[0,2,0,4],[0,6,3,7],[4,1,4,7]]}
[null,"Vinst-/förlustrapport","För [månad eller år] som slutar [månad-dag-år]"]
[null,"Företagets namn","Anges i 000s"]
[null,"Aktuell bruttomarginal [L/J]",{"$f":"IFERROR(IF(Total_bruttovinst=0,\"-\",Total_bruttovinst/Totala_säljintäkter),\"-\")","v":"-"}]
[null,"Aktuell avkastning på försäljning [T/J]",{"$f":"IFERROR(IF(Nettovinst=0,\"-\",Nettovinst/Totala_säljintäkter),\"-\")","v":"-"}]
[null,"Ändra inte kategorierna i det här kalkylbladet. Då kan formlerna brytas. Använd kalkylbladet Kategori för att lägga till kategorier och uppdatera motsvarande kalkylblad med poster. Det här kalkylbladet uppdateras automatiskt."]
[null,"Sammanfattning","Totalt föregående period","Total budget","Totalt aktuell\nperiod","Totalt aktuell period som % av försäljning","Total % ändring från föregående period","Total % ändring från budget"]
[null,"Totala säljintäkter [J]",{"$f":"SUMIFS(Säljintäkter_1[Föregående period],Säljintäkter_1[Intäktstyp],\"Säljintäkter\")","v":0},{"$f":"SUMIFS(Säljintäkter_1[Budget],Säljintäkter_1[Intäktstyp],\"Säljintäkter\")","v":0},{"$f":"SUMIFS(Säljintäkter_1[Aktuell period],Säljintäkter_1[Intäktstyp],\"Säljintäkter\")","v":0},{"$f":"SUMIFS(Säljintäkter_1[Aktuell period som % av försäljning],Säljintäkter_1[Intäktstyp],\"Säljintäkter\")","v":{"v":0,"d":"0.00%"}},{"$f":"SUMIFS(Säljintäkter_1[% ändring från föregående period],Säljintäkter_1[Intäktstyp],\"Säljintäkter\")","v":{"v":0,"d":"0.00%"}},{"$f":"SUMIFS(Säljintäkter_1[% ändring från budget],Säljintäkter_1[Intäktstyp],\"Säljintäkter\")","v":{"v":0,"d":"0.00%"}}]
[null,"Total försäljningskostnad [K]",{"$f":"SUMIFS(Säljintäkter_1[Föregående period],Säljintäkter_1[Intäktstyp],\"Försäljningskostnad\")","v":0},{"$f":"SUMIFS(Säljintäkter_1[Budget],Säljintäkter_1[Intäktstyp],\"Försäljningskostnad\")","v":0},{"$f":"SUMIFS(Säljintäkter_1[Aktuell period],Säljintäkter_1[Intäktstyp],\"Försäljningskostnad\")","v":0},{"$f":"SUMIFS(Säljintäkter_1[Aktuell period som % av försäljning],Säljintäkter_1[Intäktstyp],\"Försäljningskostnad\")","v":{"v":0,"d":"0.00%"}},{"$f":"SUMIFS(Säljintäkter_1[% ändring från föregående period],Säljintäkter_1[Intäktstyp],\"Försäljningskostnad\")","v":{"v":0,"d":"0.00%"}},{"$f":"SUMIFS(Säljintäkter_1[% ändring från budget],Säljintäkter_1[Intäktstyp],\"Försäljningskostnad\")","v":{"v":0,"d":"0.00%"}}]
[null,"Totala försäljnings- och marknadsföringsutgifter [M]",{"$f":"SUMIFS(Rörelsekostnader[Föregående period],Rörelsekostnader[Utgiftstyp],\"Försäljning och marknadsföring\")","v":0},{"$f":"SUMIFS(Rörelsekostnader[Budget],Rörelsekostnader[Utgiftstyp],\"Försäljning och marknadsföring\")","v":0},{"$f":"SUMIFS(Rörelsekostnader[Aktuell period],Rörelsekostnader[Utgiftstyp],\"Försäljning och marknadsföring\")","v":0},{"$f":"SUMIFS(Rörelsekostnader[Aktuell period som % av försäljning],Rörelsekostnader[Utgiftstyp],\"Försäljning och marknadsföring\")","v":{"v":0,"d":"0.00%"}},{"$f":"SUMIFS(Rörelsekostnader[% ändring från föregående period],Rörelsekostnader[Utgiftstyp],\"Försäljning och marknadsföring\")","v":{"v":0,"d":"0.00%"}},{"$f":"SUMIFS(Rörelsekostnader[% ändring från budget],Rörelsekostnader[Utgiftstyp],\"Försäljning och marknadsföring\")","v":{"v":0,"d":"0.00%"}}]
[null,"Totala utgifter för forskning och utveckling [N]",{"$f":"SUMIFS(Rörelsekostnader[Föregående period],Rörelsekostnader[Utgiftstyp],\"Forskning och utveckling\")","v":0},{"$f":"SUMIFS(Rörelsekostnader[Budget],Rörelsekostnader[Utgiftstyp],\"Forskning och utveckling\")","v":0},{"$f":"SUMIFS(Rörelsekostnader[Aktuell period],Rörelsekostnader[Utgiftstyp],\"Forskning och utveckling\")","v":0},{"$f":"SUMIFS(Rörelsekostnader[Aktuell period som % av försäljning],Rörelsekostnader[Utgiftstyp],\"Forskning och utveckling\")","v":{"v":0,"d":"0.00%"}},{"$f":"SUMIFS(Rörelsekostnader[% ändring från föregående period],Rörelsekostnader[Utgiftstyp],\"Forskning och utveckling\")","v":{"v":0,"d":"0.00%"}},{"$f":"SUMIFS(Rörelsekostnader[% ändring från budget],Rörelsekostnader[Utgiftstyp],\"Forskning och utveckling\")","v":{"v":0,"d":"0.00%"}}]
[null,"Totala allmänna och administrativa utgifter [O]",{"$f":"SUMIFS(Rörelsekostnader[Föregående period],Rörelsekostnader[Utgiftstyp],\"Allmänna och administrativa\")","v":0},{"$f":"SUMIFS(Rörelsekostnader[Budget],Rörelsekostnader[Utgiftstyp],\"Allmänna och administrativa\")","v":0},{"$f":"SUMIFS(Rörelsekostnader[Aktuell period],Rörelsekostnader[Utgiftstyp],\"Allmänna och administrativa\")","v":0},{"$f":"SUMIFS(Rörelsekostnader[Aktuell period som % av försäljning],Rörelsekostnader[Utgiftstyp],\"Allmänna och administrativa\")","v":{"v":0,"d":"0.00%"}},{"$f":"SUMIFS(Rörelsekostnader[% ändring från föregående period],Rörelsekostnader[Utgiftstyp],\"Allmänna och administrativa\")","v":{"v":0,"d":"0.00%"}},{"$f":"SUMIFS(Rörelsekostnader[% ändring från budget],Rörelsekostnader[Utgiftstyp],\"Allmänna och administrativa\")","v":{"v":0,"d":"0.00%"}}]
[null,"Totala övriga rörelsekostnader [P]",{"$f":"Rörelsekostnader[[#Totals],[Föregående period]]-SUM(C9:C11)","v":0},{"$f":"Rörelsekostnader[[#Totals],[Budget]]-SUM(D9:D11)","v":0},{"$f":"Rörelsekostnader[[#Totals],[Aktuell period]]-SUM(E9:E11)","v":0},{"$f":"Rörelsekostnader[[#Totals],[Aktuell period som % av försäljning]]-SUM(F9:F11)","v":{"v":0,"d":"0.00%"}},{"$f":"Rörelsekostnader[[#Totals],[% ändring från föregående period]]-SUM(G9:G11)","v":{"v":0,"d":"0.00%"}},{"$f":"Rörelsekostnader[[#Totals],[% ändring från budget]]-SUM(H9:H11)","v":{"v":0,"d":"0.00%"}}]
[null,"Andra inkomster [S]",{"$f":"Intäkter[[#Totals],[Föregående period]]","v":0},{"$f":"Intäkter[[#Totals],[Budget]]","v":0},{"$f":"Intäkter[[#Totals],[Aktuell period]]","v":0},{"$f":"Intäkter[[#Totals],[Aktuell period som % av försäljning]]","v":{"v":0,"d":"0.00%"}},{"$f":"Intäkter[[#Totals],[% ändring från föregående period]]","v":{"v":0,"d":"0.00%"}},{"$f":"Intäkter[[#Totals],[% ändring från budget]]","v":{"v":0,"d":"0.00%"}}]
[null,"Total skatt [T]",{"$f":"Skatter[[#Totals],[Föregående period]]","v":0},{"$f":"Skatter[[#Totals],[Budget]]","v":0},{"$f":"Skatter[[#Totals],[Aktuell period]]","v":0},{"$f":"Skatter[[#Totals],[Aktuell period som % av försäljning]]","v":{"v":0,"d":"0.00%"}},{"$f":"Skatter[[#Totals],[% ändring från föregående period]]","v":{"v":0,"d":"0.00%"}},{"$f":"Skatter[[#Totals],[% ändring från budget]]","v":{"v":0,"d":"0.00%"}}]
[]
[null,"Bruttovinst [L=J-K]",{"$f":"IFERROR(C7-C8,\"-\")","v":0},{"$f":"IFERROR(D7-D8,\"-\")","v":0},{"$f":"IFERROR(Totala_säljintäkter-Total_kostnad_försäljning,\"-\")","v":0},{"$f":"IFERROR(IF(Totala_säljintäkter=0,\"0,00%\",Total_bruttovinst/Totala_säljintäkter),\"-\")","v":"0,00%"},{"$f":"IFERROR(IF(C16=Total_bruttovinst,0,IF(Total_bruttovinst>C16,ABS((Total_bruttovinst/C16)-1),IF(AND(Total_bruttovinst<C16,C16<0),-((Total_bruttovinst/C16)-1),(Total_bruttovinst/C16)-1))),\"-\")","v":{"v":0,"d":"0.00%"}},{"$f":"IFERROR(IF(D16=Total_bruttovinst,0,IF(Total_bruttovinst>D16,ABS((Total_bruttovinst/D16)-1),IF(AND(Total_bruttovinst<D16,D16<0),-((Total_bruttovinst/D16)-1),(Total_bruttovinst/D16)-1))),\"-\")","v":{"v":0,"d":"0.00%"}}]
[null,"Totala rörelsekostnader [Q=M+N+O+P]",{"$f":"IFERROR(C9+C10+C11+C12,\"-\")","v":0},{"$f":"IFERROR(D9+D10+D11+D12,\"-\")","v":0},{"$f":"IFERROR(Totalt_försäljning_och_marknadsföring+Totalt_forskning_och_utveckling+Totalt_allmäna_och_administrativa+Totala_övriga_utgifter,\"-\")","v":0},{"$f":"IFERROR(IF(Totala_säljintäkter=0,\"0,00%\",Totala_rörelsekostnader/Totala_säljintäkter),\"-\")","v":"0,00%"},{"$f":"IFERROR(IF(C17=Totala_rörelsekostnader,0,IF(Totala_rörelsekostnader>C17,ABS((Totala_rörelsekostnader/C17)-1),IF(AND(Totala_rörelsekostnader<C17,C17<0),-((Totala_rörelsekostnader/C17)-1),(Totala_rörelsekostnader/C17)-1))),\"-\")","v":{"v":0,"d":"0.00%"}},{"$f":"IFERROR(IF(D17=Totala_rörelsekostnader,0,IF(Totala_rörelsekostnader>D17,ABS((Totala_rörelsekostnader/D17)-1),IF(AND(Totala_rörelsekostnader<D17,D17<0),-((Totala_rörelsekostnader/D17)-1),(Totala_rörelsekostnader/D17)-1))),\"-\")","v":{"v":0,"d":"0.00%"}}]
[null,"Inkomst från verksamhetsintäkter [R=L-Q]",{"$f":"IFERROR(C16-C17,\"-\")","v":0},{"$f":"IFERROR(D16-D17,\"-\")","v":0},{"$f":"IFERROR(Total_bruttovinst-Totala_rörelsekostnader,\"-\")","v":0},{"$f":"IFERROR(IF(Totala_säljintäkter=0,\"0,00%\",Totala_verksamhetsintäkter/Totala_säljintäkter),\"-\")","v":"0,00%"},{"$f":"IFERROR(IF(C18=Totala_verksamhetsintäkter,0,IF(Totala_verksamhetsintäkter>C18,ABS((Totala_verksamhetsintäkter/C18)-1),IF(AND(Totala_verksamhetsintäkter<C18,C18<0),-((Totala_verksamhetsintäkter/C18)-1),(Totala_verksamhetsintäkter/C18)-1))),\"-\")","v":{"v":0,"d":"0.00%"}},{"$f":"IFERROR(IF(D18=Totala_verksamhetsintäkter,0,IF(Totala_verksamhetsintäkter>D18,ABS((Totala_verksamhetsintäkter/D18)-1),IF(AND(Totala_verksamhetsintäkter<D18,D18<0),-((Totala_verksamhetsintäkter/D18)-1),(Totala_verksamhetsintäkter/D18)-1))),\"-\")","v":{"v":0,"d":"0.00%"}}]
[null,"Nettovinst [U=R+S-T]",{"$f":"IFERROR(C18+C13-C14,\"-\")","v":0},{"$f":"IFERROR(D18+D13-D14,\"-\")","v":0},{"$f":"Totala_verksamhetsintäkter+Totala_övriga_intäkter-Total_skatt","v":0},{"$f":"IFERROR(IF(Totala_säljintäkter=0,\"0,00%\",Nettovinst/Totala_säljintäkter),\"-\")","v":"0,00%"},{"$f":"IFERROR(IF(C19=Nettovinst,0,IF(Nettovinst>C19,ABS((Nettovinst/C19)-1),IF(AND(Nettovinst<C19,C19<0),-((Nettovinst/C19)-1),(Nettovinst/C19)-1))),\"-\")","v":{"v":0,"d":"0.00%"}},{"$f":"IFERROR(IF(D19=Nettovinst,0,IF(Nettovinst>D19,ABS((Nettovinst/D19)-1),IF(AND(Nettovinst<D19,D19<0),-((Nettovinst/D19)-1),(Nettovinst/D19)-1))),\"-\")","v":{"v":0,"d":"0.00%"}}]

{"sheet":"Försäljning","index":1,"n_rows":13,"n_cols":9,"rows_kept":13,"merged":[[0,7,2,8]]}
[null,{"$f":"Arbetsbok_Rubrik","v":"Vinst-/förlustrapport"}]
[null,{"$f":"Företagsnamn","v":"Företagets namn"},"Anges i 000s"]
[null,"Säljintäkter",{"$f":"IFERROR(Säljintäkter,\"-\")","v":0}]
[null,"Intäktstyp","Beskrivning","Föregående period","Budget","Aktuell period","Aktuell period som % av försäljning","% ändring från föregående period","% ändring från budget"]
[null,"Säljintäkter","Produkt/tjänst 1",{"$nulls":3},{"$f":"IFERROR(IF(Säljintäkter_1[[#Totals],[Aktuell period]]=0,\"-\",Säljintäkter_1[Aktuell period]/Säljintäkter),\"-\")","v":"-"},{"$f":"IFERROR(IF(Säljintäkter_1[[#This Row],[Föregående period]]=Säljintäkter_1[[#This Row],[Aktuell period]],0,IF(Säljintäkter_1[[#This Row],[Aktuell period]]>Säljintäkter_1[[#This Row],[Föregående period]],ABS((Säljintäkter_1[[#This Row],[Aktuell period]]/Säljintäkter_1[[#This Row],[Föregående period]])-1),IF(AND(Säljintäkter_1[[#This Row],[Aktuell period]]<Säljintäkter_1[[#This Row],[Föregående period]],Säljintäkter_1[[#This Row],[Föregående period]]<0),-((Säljintäkter_1[[#This Row],[Aktuell period]]/Säljintäkter_1[[#This Row],[Föregående period]])-1),(Säljintäkter_1[[#This Row],[Aktuell period]]/Säljintäkter_1[[#This Row],[Föregående period]])-1))),\"-\")","v":{"v":0,"d":"0.00%"}},{"$f":"IFERROR(IF(Säljintäkter_1[[#This Row],[Budget]]=Säljintäkter_1[[#This Row],[Aktuell period]],0,IF(Säljintäkter_1[[#This Row],[Aktuell period]]>Säljintäkter_1[[#This Row],[Budget]],ABS((Säljintäkter_1[[#This Row],[Aktuell period]]/Säljintäkter_1[[#This Row],[Budget]])-1),IF(AND(Säljintäkter_1[[#This Row],[Aktuell period]]<Säljintäkter_1[[#This Row],[Budget]],Säljintäkter_1[[#This Row],[Budget]]<0),-((Säljintäkter_1[[#This Row],[Aktuell period]]/Säljintäkter_1[[#This Row],[Budget]])-1),(Säljintäkter_1[[#This Row],[Aktuell period]]/Säljintäkter_1[[#This Row],[Budget]])-1))),\"-\")","v":{"v":0,"d":"0.00%"}}]
[null,"Säljintäkter","Produkt/tjänst 2",{"$nulls":3},{"$f":"IFERROR(IF(Säljintäkter_1[[#Totals],[Aktuell period]]=0,\"-\",Säljintäkter_1[Aktuell period]/Säljintäkter),\"-\")","v":"-"},{"$f":"IFERROR(IF(Säljintäkter_1[[#This Row],[Föregående period]]=Säljintäkter_1[[#This Row],[Aktuell period]],0,IF(Säljintäkter_1[[#This Row],[Aktuell period]]>Säljintäkter_1[[#This Row],[Föregående period]],ABS((Säljintäkter_1[[#This Row],[Aktuell period]]/Säljintäkter_1[[#This Row],[Föregående period]])-1),IF(AND(Säljintäkter_1[[#This Row],[Aktuell period]]<Säljintäkter_1[[#This Row],[Föregående period]],Säljintäkter_1[[#This Row],[Föregående period]]<0),-((Säljintäkter_1[[#This Row],[Aktuell period]]/Säljintäkter_1[[#This Row],[Föregående period]])-1),(Säljintäkter_1[[#This Row],[Aktuell period]]/Säljintäkter_1[[#This Row],[Föregående period]])-1))),\"-\")","v":{"v":0,"d":"0.00%"}},{"$f":"IFERROR(IF(Säljintäkter_1[[#This Row],[Budget]]=Säljintäkter_1[[#This Row],[Aktuell period]],0,IF(Säljintäkter_1[[#This Row],[Aktuell period]]>Säljintäkter_1[[#This Row],[Budget]],ABS((Säljintäkter_1[[#This Row],[Aktuell period]]/Säljintäkter_1[[#This Row],[Budget]])-1),IF(AND(Säljintäkter_1[[#This Row],[Aktuell period]]<Säljintäkter_1[[#This Row],[Budget]],Säljintäkter_1[[#This Row],[Budget]]<0),-((Säljintäkter_1[[#This Row],[Aktuell period]]/Säljintäkter_1[[#This Row],[Budget]])-1),(Säljintäkter_1[[#This Row],[Aktuell period]]/Säljintäkter_1[[#This Row],[Budget]])-1))),\"-\")","v":{"v":0,"d":"0.00%"}}]
[null,"Säljintäkter","Produkt/tjänst 3",{"$nulls":3},{"$f":"IFERROR(IF(Säljintäkter_1[[#Totals],[Aktuell period]]=0,\"-\",Säljintäkter_1[Aktuell period]/Säljintäkter),\"-\")","v":"-"},{"$f":"IFERROR(IF(Säljintäkter_1[[#This Row],[Föregående period]]=Säljintäkter_1[[#This Row],[Aktuell period]],0,IF(Säljintäkter_1[[#This Row],[Aktuell period]]>Säljintäkter_1[[#This Row],[Föregående period]],ABS((Säljintäkter_1[[#This Row],[Aktuell period]]/Säljintäkter_1[[#This Row],[Föregående period]])-1),IF(AND(Säljintäkter_1[[#This Row],[Aktuell period]]<Säljintäkter_1[[#This Row],[Föregående period]],Säljintäkter_1[[#This Row],[Föregående period]]<0),-((Säljintäkter_1[[#This Row],[Aktuell period]]/Säljintäkter_1[[#This Row],[Föregående period]])-1),(Säljintäkter_1[[#This Row],[Aktuell period]]/Säljintäkter_1[[#This Row],[Föregående period]])-1))),\"-\")","v":{"v":0,"d":"0.00%"}},{"$f":"IFERROR(IF(Säljintäkter_1[[#This Row],[Budget]]=Säljintäkter_1[[#This Row],[Aktuell period]],0,IF(Säljintäkter_1[[#This Row],[Aktuell period]]>Säljintäkter_1[[#This Row],[Budget]],ABS((Säljintäkter_1[[#This Row],[Aktuell period]]/Säljintäkter_1[[#This Row],[Budget]])-1),IF(AND(Säljintäkter_1[[#This Row],[Aktuell period]]<Säljintäkter_1[[#This Row],[Budget]],Säljintäkter_1[[#This Row],[Budget]]<0),-((Säljintäkter_1[[#This Row],[Aktuell period]]/Säljintäkter_1[[#This Row],[Budget]])-1),(Säljintäkter_1[[#This Row],[Aktuell period]]/Säljintäkter_1[[#This Row],[Budget]])-1))),\"-\")","v":{"v":0,"d":"0.00%"}}]
[null,"Säljintäkter","Produkt/tjänst 4",{"$nulls":3},{"$f":"IFERROR(IF(Säljintäkter_1[[#Totals],[Aktuell period]]=0,\"-\",Säljintäkter_1[Aktuell period]/Säljintäkter),\"-\")","v":"-"},{"$f":"IFERROR(IF(Säljintäkter_1[[#This Row],[Föregående period]]=Säljintäkter_1[[#This Row],[Aktuell period]],0,IF(Säljintäkter_1[[#This Row],[Aktuell period]]>Säljintäkter_1[[#This Row],[Föregående period]],ABS((Säljintäkter_1[[#This Row],[Aktuell period]]/Säljintäkter_1[[#This Row],[Föregående period]])-1),IF(AND(Säljintäkter_1[[#This Row],[Aktuell period]]<Säljintäkter_1[[#This Row],[Föregående period]],Säljintäkter_1[[#This Row],[Föregående period]]<0),-((Säljintäkter_1[[#This Row],[Aktuell period]]/Säljintäkter_1[[#This Row],[Föregående period]])-1),(Säljintäkter_1[[#This Row],[Aktuell period]]/Säljintäkter_1[[#This Row],[Föregående period]])-1))),\"-\")","v":{"v":0,"d":"0.00%"}},{"$f":"IFERROR(IF(Säljintäkter_1[[#This Row],[Budget]]=Säljintäkter_1[[#This Row],[Aktuell period]],0,IF(Säljintäkter_1[[#This Row],[Aktuell period]]>Säljintäkter_1[[#This Row],[Budget]],ABS((Säljintäkter_1[[#This Row],[Aktuell period]]/Säljintäkter_1[[#This Row],[Budget]])-1),IF(AND(Säljintäkter_1[[#This Row],[Aktuell period]]<Säljintäkter_1[[#This Row],[Budget]],Säljintäkter_1[[#This Row],[Budget]]<0),-((Säljintäkter_1[[#This Row],[Aktuell period]]/Säljintäkter_1[[#This Row],[Budget]])-1),(Säljintäkter_1[[#This Row],[Aktuell period]]/Säljintäkter_1[[#This Row],[Budget]])-1))),\"-\")","v":{"v":0,"d":"0.00%"}}]
[null,"Försäljningskostnad","Produkt/tjänst 1",{"$nulls":3},{"$f":"IFERROR(IF(Säljintäkter_1[[#Totals],[Aktuell period]]=0,\"-\",Säljintäkter_1[Aktuell period]/Säljintäkter),\"-\")","v":"-"},{"$f":"IFERROR(IF(Säljintäkter_1[[#This Row],[Föregående period]]=Säljintäkter_1[[#This Row],[Aktuell period]],0,IF(Säljintäkter_1[[#This Row],[Aktuell period]]>Säljintäkter_1[[#This Row],[Föregående period]],ABS((Säljintäkter_1[[#This Row],[Aktuell period]]/Säljintäkter_1[[#This Row],[Föregående period]])-1),IF(AND(Säljintäkter_1[[#This Row],[Aktuell period]]<Säljintäkter_1[[#This Row],[Föregående period]],Säljintäkter_1[[#This Row],[Föregående period]]<0),-((Säljintäkter_1[[#This Row],[Aktuell period]]/Säljintäkter_1[[#This Row],[Föregående period]])-1),(Säljintäkter_1[[#This Row],[Aktuell period]]/Säljintäkter_1[[#This Row],[Föregående period]])-1))),\"-\")","v":{"v":0,"d":"0.00%"}},{"$f":"IFERROR(IF(Säljintäkter_1[[#This Row],[Budget]]=Säljintäkter_1[[#This Row],[Aktuell period]],0,IF(Säljintäkter_1[[#This Row],[Aktuell period]]>Säljintäkter_1[[#This Row],[Budget]],ABS((Säljintäkter_1[[#This Row],[Aktuell period]]/Säljintäkter_1[[#This Row],[Budget]])-1),IF(AND(Säljintäkter_1[[#This Row],[Aktuell period]]<Säljintäkter_1[[#This Row],[Budget]],Säljintäkter_1[[#This Row],[Budget]]<0),-((Säljintäkter_1[[#This Row],[Aktuell period]]/Säljintäkter_1[[#This Row],[Budget]])-1),(Säljintäkter_1[[#This Row],[Aktuell period]]/Säljintäkter_1[[#This Row],[Budget]])-1))),\"-\")","v":{"v":0,"d":"0.00%"}}]
[null,"Försäljningskostnad","Produkt/tjänst 2",{"$nulls":3},{"$f":"IFERROR(IF(Säljintäkter_1[[#Totals],[Aktuell period]]=0,\"-\",Säljintäkter_1[Aktuell period]/Säljintäkter),\"-\")","v":"-"},{"$f":"IFERROR(IF(Säljintäkter_1[[#This Row],[Föregående period]]=Säljintäkter_1[[#This Row],[Aktuell period]],0,IF(Säljintäkter_1[[#This Row],[Aktuell period]]>Säljintäkter_1[[#This Row],[Föregående period]],ABS((Säljintäkter_1[[#This Row],[Aktuell period]]/Säljintäkter_1[[#This Row],[Föregående period]])-1),IF(AND(Säljintäkter_1[[#This Row],[Aktuell period]]<Säljintäkter_1[[#This Row],[Föregående period]],Säljintäkter_1[[#This Row],[Föregående period]]<0),-((Säljintäkter_1[[#This Row],[Aktuell period]]/Säljintäkter_1[[#This Row],[Föregående period]])-1),(Säljintäkter_1[[#This Row],[Aktuell period]]/Säljintäkter_1[[#This Row],[Föregående period]])-1))),\"-\")","v":{"v":0,"d":"0.00%"}},{"$f":"IFERROR(IF(Säljintäkter_1[[#This Row],[Budget]]=Säljintäkter_1[[#This Row],[Aktuell period]],0,IF(Säljintäkter_1[[#This Row],[Aktuell period]]>Säljintäkter_1[[#This Row],[Budget]],ABS((Säljintäkter_1[[#This Row],[Aktuell period]]/Säljintäkter_1[[#This Row],[Budget]])-1),IF(AND(Säljintäkter_1[[#This Row],[Aktuell period]]<Säljintäkter_1[[#This Row],[Budget]],Säljintäkter_1[[#This Row],[Budget]]<0),-((Säljintäkter_1[[#This Row],[Aktuell period]]/Säljintäkter_1[[#This Row],[Budget]])-1),(Säljintäkter_1[[#This Row],[Aktuell period]]/Säljintäkter_1[[#This Row],[Budget]])-1))),\"-\")","v":{"v":0,"d":"0.00%"}}]
[null,"Försäljningskostnad","Produkt/tjänst 3",{"$nulls":3},{"$f":"IFERROR(IF(Säljintäkter_1[[#Totals],[Aktuell period]]=0,\"-\",Säljintäkter_1[Aktuell period]/Säljintäkter),\"-\")","v":"-"},{"$f":"IFERROR(IF(Säljintäkter_1[[#This Row],[Föregående period]]=Säljintäkter_1[[#This Row],[Aktuell period]],0,IF(Säljintäkter_1[[#This Row],[Aktuell period]]>Säljintäkter_1[[#This Row],[Föregående period]],ABS((Säljintäkter_1[[#This Row],[Aktuell period]]/Säljintäkter_1[[#This Row],[Föregående period]])-1),IF(AND(Säljintäkter_1[[#This Row],[Aktuell period]]<Säljintäkter_1[[#This Row],[Föregående period]],Säljintäkter_1[[#This Row],[Föregående period]]<0),-((Säljintäkter_1[[#This Row],[Aktuell period]]/Säljintäkter_1[[#This Row],[Föregående period]])-1),(Säljintäkter_1[[#This Row],[Aktuell period]]/Säljintäkter_1[[#This Row],[Föregående period]])-1))),\"-\")","v":{"v":0,"d":"0.00%"}},{"$f":"IFERROR(IF(Säljintäkter_1[[#This Row],[Budget]]=Säljintäkter_1[[#This Row],[Aktuell period]],0,IF(Säljintäkter_1[[#This Row],[Aktuell period]]>Säljintäkter_1[[#This Row],[Budget]],ABS((Säljintäkter_1[[#This Row],[Aktuell period]]/Säljintäkter_1[[#This Row],[Budget]])-1),IF(AND(Säljintäkter_1[[#This Row],[Aktuell period]]<Säljintäkter_1[[#This Row],[Budget]],Säljintäkter_1[[#This Row],[Budget]]<0),-((Säljintäkter_1[[#This Row],[Aktuell period]]/Säljintäkter_1[[#This Row],[Budget]])-1),(Säljintäkter_1[[#This Row],[Aktuell period]]/Säljintäkter_1[[#This Row],[Budget]])-1))),\"-\")","v":{"v":0,"d":"0.00%"}}]
[null,"Försäljningskostnad","Produkt/tjänst 4",{"$nulls":3},{"$f":"IFERROR(IF(Säljintäkter_1[[#Totals],[Aktuell period]]=0,\"-\",Säljintäkter_1[Aktuell period]/Säljintäkter),\"-\")","v":"-"},{"$f":"IFERROR(IF(Säljintäkter_1[[#This Row],[Föregående period]]=Säljintäkter_1[[#This Row],[Aktuell period]],0,IF(Säljintäkter_1[[#This Row],[Aktuell period]]>Säljintäkter_1[[#This Row],[Föregående period]],ABS((Säljintäkter_1[[#This Row],[Aktuell period]]/Säljintäkter_1[[#This Row],[Föregående period]])-1),IF(AND(Säljintäkter_1[[#This Row],[Aktuell period]]<Säljintäkter_1[[#This Row],[Föregående period]],Säljintäkter_1[[#This Row],[Föregående period]]<0),-((Säljintäkter_1[[#This Row],[Aktuell period]]/Säljintäkter_1[[#This Row],[Föregående period]])-1),(Säljintäkter_1[[#This Row],[Aktuell period]]/Säljintäkter_1[[#This Row],[Föregående period]])-1))),\"-\")","v":{"v":0,"d":"0.00%"}},{"$f":"IFERROR(IF(Säljintäkter_1[[#This Row],[Budget]]=Säljintäkter_1[[#This Row],[Aktuell period]],0,IF(Säljintäkter_1[[#This Row],[Aktuell period]]>Säljintäkter_1[[#This Row],[Budget]],ABS((Säljintäkter_1[[#This Row],[Aktuell period]]/Säljintäkter_1[[#This Row],[Budget]])-1),IF(AND(Säljintäkter_1[[#This Row],[Aktuell period]]<Säljintäkter_1[[#This Row],[Budget]],Säljintäkter_1[[#This Row],[Budget]]<0),-((Säljintäkter_1[[#This Row],[Aktuell period]]/Säljintäkter_1[[#This Row],[Budget]])-1),(Säljintäkter_1[[#This Row],[Aktuell period]]/Säljintäkter_1[[#This Row],[Budget]])-1))),\"-\")","v":{"v":0,"d":"0.00%"}}]
[null,"Totala säljintäkter",null,{"$f":"SUBTOTAL(109,Säljintäkter_1[Föregående period])","v":0},{"$f":"SUBTOTAL(109,Säljintäkter_1[Budget])","v":0},{"$f":"SUBTOTAL(109,Säljintäkter_1[Aktuell period])","v":0},{"$f":"SUBTOTAL(109,Säljintäkter_1[Aktuell period som % av försäljning])","v":{"v":0,"d":"0.00%"}},{"$f":"SUBTOTAL(109,Säljintäkter_1[% ändring från föregående period])","v":{"v":0,"d":"0.00%"}},{"$f":"SUBTOTAL(109,Säljintäkter_1[% ändring från budget])","v":{"v":0,"d":"0.00%"}}]

{"sheet":"Intäkter","index":2,"n_rows":7,"n_cols":9,"rows_kept":7,"merged":[[0,7,2,8]]}
[null,{"$f":"Arbetsbok_Rubrik","v":"Vinst-/förlustrapport"}]
[null,{"$f":"Företagsnamn","v":"Företagets namn"},"Anges i 000s"]
[null,"Intäkter",{"$f":"IFERROR(Intäkter[[#Totals],[Aktuell period]],\"-\")","v":0}]
[null,"Intäktstyp","Beskrivning","Föregående period","Budget","Aktuell period","Aktuell period som % av försäljning","% ändring från föregående period","% ändring från budget"]
[null,"Intäkter","Annan inkomst",{"$nulls":3},{"$f":"IFERROR(IF(Säljintäkter=0,\"-\",Intäkter[Aktuell period]/Säljintäkter),\"-\")","v":"-"},{"$f":"IFERROR(IF(Intäkter[[#This Row],[Föregående period]]=Intäkter[[#This Row],[Aktuell period]],0,IF(Intäkter[[#This Row],[Aktuell period]]>Intäkter[[#This Row],[Föregående period]],ABS((Intäkter[[#This Row],[Aktuell period]]/Intäkter[[#This Row],[Föregående period]])-1),IF(AND(Intäkter[[#This Row],[Aktuell period]]<Intäkter[[#This Row],[Föregående period]],Intäkter[[#This Row],[Föregående period]]<0),-((Intäkter[[#This Row],[Aktuell period]]/Intäkter[[#This Row],[Föregående period]])-1),(Intäkter[[#This Row],[Aktuell period]]/Intäkter[[#This Row],[Föregående period]])-1))),\"-\")","v":{"v":0,"d":"0.00%"}},{"$f":"IFERROR(IF(Intäkter[[#This Row],[Budget]]=Intäkter[[#This Row],[Aktuell period]],0,IF(Intäkter[[#This Row],[Aktuell period]]>Intäkter[[#This Row],[Budget]],ABS((Intäkter[[#This Row],[Aktuell period]]/Intäkter[[#This Row],[Budget]])-1),IF(AND(Intäkter[[#This Row],[Aktuell period]]<Intäkter[[#This Row],[Budget]],Intäkter[[#This Row],[Budget]]<0),-((Intäkter[[#This Row],[Aktuell period]]/Intäkter[[#This Row],[Budget]])-1),(Intäkter[[#This Row],[Aktuell period]]/Intäkter[[#This Row],[Budget]])-1))),\"-\")","v":{"v":0,"d":"0.00%"}}]
[{"$nulls":6},{"$f":"IFERROR(IF(Säljintäkter=0,\"-\",Intäkter[Aktuell period]/Säljintäkter),\"-\")","v":"-"},{"$f":"IFERROR(IF(Intäkter[[#This Row],[Föregående period]]=Intäkter[[#This Row],[Aktuell period]],0,IF(Intäkter[[#This Row],[Aktuell period]]>Intäkter[[#This Row],[Föregående period]],ABS((Intäkter[[#This Row],[Aktuell period]]/Intäkter[[#This Row],[Föregående period]])-1),IF(AND(Intäkter[[#This Row],[Aktuell period]]<Intäkter[[#This Row],[Föregående period]],Intäkter[[#This Row],[Föregående period]]<0),-((Intäkter[[#This Row],[Aktuell period]]/Intäkter[[#This Row],[Föregående period]])-1),(Intäkter[[#This Row],[Aktuell period]]/Intäkter[[#This Row],[Föregående period]])-1))),\"-\")","v":{"v":0,"d":"0.00%"}},{"$f":"IFERROR(IF(Intäkter[[#This Row],[Budget]]=Intäkter[[#This Row],[Aktuell period]],0,IF(Intäkter[[#This Row],[Aktuell period]]>Intäkter[[#This Row],[Budget]],ABS((Intäkter[[#This Row],[Aktuell period]]/Intäkter[[#This Row],[Budget]])-1),IF(AND(Intäkter[[#This Row],[Aktuell period]]<Intäkter[[#This Row],[Budget]],Intäkter[[#This Row],[Budget]]<0),-((Intäkter[[#This Row],[Aktuell period]]/Intäkter[[#This Row],[Budget]])-1),(Intäkter[[#This Row],[Aktuell period]]/Intäkter[[#This Row],[Budget]])-1))),\"-\")","v":{"v":0,"d":"0.00%"}}]
[null,"Totala säljintäkter",null,{"$f":"SUBTOTAL(109,Intäkter[Föregående period])","v":0},{"$f":"SUBTOTAL(109,Intäkter[Budget])","v":0},{"$f":"SUBTOTAL(109,Intäkter[Aktuell period])","v":0},{"$f":"SUBTOTAL(109,Intäkter[Aktuell period som % av försäljning])","v":{"v":0,"d":"0.00%"}},{"$f":"SUBTOTAL(109,Intäkter[% ändring från föregående period])","v":{"v":0,"d":"0.00%"}},{"$f":"SUBTOTAL(109,Intäkter[% ändring från budget])","v":{"v":0,"d":"0.00%"}}]

{"sheet":"Utgifter","index":3,"n_rows":25,"n_cols":9,"rows_kept":25,"merged":[[0,7,2,8]]}
[null,{"$f":"Arbetsbok_Rubrik","v":"Vinst-/förlustrapport"}]
[null,{"$f":"Företagsnamn","v":"Företagets namn"},"Anges i 000s"]
[null,"Rörelsekostnader",{"$f":"IFERROR(Rörelsekostnader[[#Totals],[Aktuell period]],\"-\")","v":0}]
[null,"Utgiftstyp","Beskrivning","Föregående period","Budget","Aktuell period","Aktuell period som % av försäljning","% ändring från föregående period","% ändring från budget"]
[null,"Försäljning och marknadsföring","Reklam",{"$nulls":3},{"$f":"IFERROR(IF(Säljintäkter=0,\"-\",Rörelsekostnader[Aktuell period]/Säljintäkter),\"-\")","v":"-"},{"$f":"IFERROR(IF(Rörelsekostnader[[#This Row],[Föregående period]]=Rörelsekostnader[[#This Row],[Aktuell period]],0,IF(Rörelsekostnader[[#This Row],[Aktuell period]]>Rörelsekostnader[[#This Row],[Föregående period]],ABS((Rörelsekostnader[[#This Row],[Aktuell period]]/Rörelsekostnader[[#This Row],[Föregående period]])-1),IF(AND(Rörelsekostnader[[#This Row],[Aktuell period]]<Rörelsekostnader[[#This Row],[Föregående period]],Rörelsekostnader[[#This Row],[Föregående period]]<0),-((Rörelsekostnader[[#This Row],[Aktuell period]]/Rörelsekostnader[[#This Row],[Föregående period]])-1),(Rörelsekostnader[[#This Row],[Aktuell period]]/Rörelsekostnader[[#This Row],[Föregående period]])-1))),\"-\")","v":{"v":0,"d":"0.00%"}},{"$f":"IFERROR(IF(Rörelsekostnader[[#This Row],[Budget]]=Rörelsekostnader[[#This Row],[Aktuell period]],0,IF(Rörelsekostnader[[#This Row],[Aktuell period]]>Rörelsekostnader[[#This Row],[Budget]],ABS((Rörelsekostnader[[#This Row],[Aktuell period]]/Rörelsekostnader[[#This Row],[Budget]])-1),IF(AND(Rörelsekostnader[[#This Row],[Aktuell period]]<Rörelsekostnader[[#This Row],[Budget]],Rörelsekostnader[[#This Row],[Budget]]<0),-((Rörelsekostnader[[#This Row],[Aktuell period]]/Rörelsekostnader[[#This Row],[Budget]])-1),(Rörelsekostnader[[#This Row],[Aktuell period]]/Rörelsekostnader[[#This Row],[Budget]])-1))),\"-\")","v":{"v":0,"d":"0.00%"}}]
[null,"Försäljning och marknadsföring","Direktmarknadsföring",{"$nulls":3},{"$f":"IFERROR(IF(Säljintäkter=0,\"-\",Rörelsekostnader[Aktuell period]/Säljintäkter),\"-\")","v":"-"},{"$f":"IFERROR(IF(Rörelsekostnader[[#This Row],[Föregående period]]=Rörelsekostnader[[#This Row],[Aktuell period]],0,IF(Rörelsekostnader[[#This Row],[Aktuell period]]>Rörelsekostnader[[#This Row],[Föregående period]],ABS((Rörelsekostnader[[#This Row],[Aktuell period]]/Rörelsekostnader[[#This Row],[Föregående period]])-1),IF(AND(Rörelsekostnader[[#This Row],[Aktuell period]]<Rörelsekostnader[[#This Row],[Föregående period]],Rörelsekostnader[[#This Row],[Föregående period]]<0),-((Rörelsekostnader[[#This Row],[Aktuell period]]/Rörelsekostnader[[#This Row],[Föregående period]])-1),(Rörelsekostnader[[#This Row],[Aktuell period]]/Rörelsekostnader[[#This Row],[Föregående period]])-1))),\"-\")","v":{"v":0,"d":"0.00%"}},{"$f":"IFERROR(IF(Rörelsekostnader[[#This Row],[Budget]]=Rörelsekostnader[[#This Row],[Aktuell period]],0,IF(Rörelsekostnader[[#This Row],[Aktuell period]]>Rörelsekostnader[[#This Row],[Budget]],ABS((Rörelsekostnader[[#This Row],[Aktuell period]]/Rörelsekostnader[[#This Row],[Budget]])-1),IF(AND(Rörelsekostnader[[#This Row],[Aktuell period]]<Rörelsekostnader[[#This Row],[Budget]],Rörelsekostnader[[#This Row],[Budget]]<0),-((Rörelsekostnader[[#This Row],[Aktuell period]]/Rörelsekostnader[[#This Row],[Budget]])-1),(Rörelsekostnader[[#This Row],[Aktuell period]]/Rörelsekostnader[[#This Row],[Budget]])-1))),\"-\")","v":{"v":0,"d":"0.00%"}}]
[null,"Försäljning och marknadsföring","Andra utgifter (specificera)",{"$nulls":3},{"$f":"IFERROR(IF(Säljintäkter=0,\"-\",Rörelsekostnader[Aktuell period]/Säljintäkter),\"-\")","v":"-"},{"$f":"IFERROR(IF(Rörelsekostnader[[#This Row],[Föregående period]]=Rörelsekostnader[[#This Row],[Aktuell period]],0,IF(Rörelsekostnader[[#This Row],[Aktuell period]]>Rörelsekostnader[[#This Row],[Föregående period]],ABS((Rörelsekostnader[[#This Row],[Aktuell period]]/Rörelsekostnader[[#This Row],[Föregående period]])-1),IF(AND(Rörelsekostnader[[#This Row],[Aktuell period]]<Rörelsekostnader[[#This Row],[Föregående period]],Rörelsekostnader[[#This Row],[Föregående period]]<0),-((Rörelsekostnader[[#This Row],[Aktuell period]]/Rörelsekostnader[[#This Row],[Föregående period]])-1),(Rörelsekostnader[[#This Row],[Aktuell period]]/Rörelsekostnader[[#This Row],[Föregående period]])-1))),\"-\")","v":{"v":0,"d":"0.00%"}},{"$f":"IFERROR(IF(Rörelsekostnader[[#This Row],[Budget]]=Rörelsekostnader[[#This Row],[Aktuell period]],0,IF(Rörelsekostnader[[#This Row],[Aktuell period]]>Rörelsekostnader[[#This Row],[Budget]],ABS((Rörelsekostnader[[#This Row],[Aktuell period]]/Rörelsekostnader[[#This Row],[Budget]])-1),IF(AND(Rörelsekostnader[[#This Row],[Aktuell period]]<Rörelsekostnader[[#This Row],[Budget]],Rörelsekostnader[[#This Row],[Budget]]<0),-((Rörelsekostnader[[#This Row],[Aktuell period]]/Rörelsekostnader[[#This Row],[Budget]])-1),(Rörelsekostnader[[#This Row],[Aktuell period]]/Rörelsekostnader[[#This Row],[Budget]])-1))),\"-\")","v":{"v":0,"d":"0.00%"}}]
[null,"Försäljning och marknadsföring","Andra utgifter (specificera)",{"$nulls":3},{"$f":"IFERROR(IF(Säljintäkter=0,\"-\",Rörelsekostnader[Aktuell period]/Säljintäkter),\"-\")","v":"-"},{"$f":"IFERROR(IF(Rörelsekostnader[[#This Row],[Föregående period]]=Rörelsekostnader[[#This Row],[Aktuell period]],0,IF(Rörelsekostnader[[#This Row],[Aktuell period]]>Rörelsekostnader[[#This Row],[Föregående period]],ABS((Rörelsekostnader[[#This Row],[Aktuell period]]/Rörelsekostnader[[#This Row],[Föregående period]])-1),IF(AND(Rörelsekostnader[[#This Row],[Aktuell period]]<Rörelsekostnader[[#This Row],[Föregående period]],Rörelsekostnader[[#This Row],[Föregående period]]<0),-((Rörelsekostnader[[#This Row],[Aktuell period]]/Rörelsekostnader[[#This Row],[Föregående period]])-1),(Rörelsekostnader[[#This Row],[Aktuell period]]/Rörelsekostnader[[#This Row],[Föregående period]])-1))),\"-\")","v":{"v":0,"d":"0.00%"}},{"$f":"IFERROR(IF(Rörelsekostnader[[#This Row],[Budget]]=Rörelsekostnader[[#This Row],[Aktuell period]],0,IF(Rörelsekostnader[[#This Row],[Aktuell period]]>Rörelsekostnader[[#This Row],[Budget]],ABS((Rörelsekostnader[[#This Row],[Aktuell period]]/Rörelsekostnader[[#This Row],[Budget]])-1),IF(AND(Rörelsekostnader[[#This Row],[Aktuell period]]<Rörelsekostnader[[#This Row],[Budget]],Rörelsekostnader[[#This Row],[Budget]]<0),-((Rörelsekostnader[[#This Row],[Aktuell period]]/Rörelsekostnader[[#This Row],[Budget]])-1),(Rörelsekostnader[[#This Row],[Aktuell period]]/Rörelsekostnader[[#This Row],[Budget]])-1))),\"-\")","v":{"v":0,"d":"0.00%"}}]
[null,"Forskning och utveckling","Tekniska licenser",{"$nulls":3},{"$f":"IFERROR(IF(Säljintäkter=0,\"-\",Rörelsekostnader[Aktuell period]/Säljintäkter),\"-\")","v":"-"},{"$f":"IFERROR(IF(Rörelsekostnader[[#This Row],[Föregående period]]=Rörelsekostnader[[#This Row],[Aktuell period]],0,IF(Rörelsekostnader[[#This Row],[Aktuell period]]>Rörelsekostnader[[#This Row],[Föregående period]],ABS((Rörelsekostnader[[#This Row],[Aktuell period]]/Rörelsekostnader[[#This Row],[Föregående period]])-1),IF(AND(Rörelsekostnader[[#This Row],[Aktuell period]]<Rörelsekostnader[[#This Row],[Föregående period]],Rörelsekostnader[[#This Row],[Föregående period]]<0),-((Rörelsekostnader[[#This Row],[Aktuell period]]/Rörelsekostnader[[#This Row],[Föregående period]])-1),(Rörelsekostnader[[#This Row],[Aktuell period]]/Rörelsekostnader[[#This Row],[Föregående period]])-1))),\"-\")","v":{"v":0,"d":"0.00%"}},{"$f":"IFERROR(IF(Rörelsekostnader[[#This Row],[Budget]]=Rörelsekostnader[[#This Row],[Aktuell period]],0,IF(Rörelsekostnader[[#This Row],[Aktuell period]]>Rörelsekostnader[[#This Row],[Budget]],ABS((Rörelsekostnader[[#This Row],[Aktuell period]]/Rörelsekostnader[[#This Row],[Budget]])-1),IF(AND(Rörelsekostnader[[#This Row],[Aktuell period]]<Rörelsekostnader[[#This Row],[Budget]],Rörelsekostnader[[#This Row],[Budget]]<0),-((Rörelsekostnader[[#This Row],[Aktuell period]]/Rörelsekostnader[[#This Row],[Budget]])-1),(Rörelsekostnader[[#This Row],[Aktuell period]]/Rörelsekostnader[[#This Row],[Budget]])-1))),\"-\")","v":{"v":0,"d":"0.00%"}}]
[null,"Forskning och utveckling","Patent ",{"$nulls":3},{"$f":"IFERROR(IF(Säljintäkter=0,\"-\",Rörelsekostnader[Aktuell period]/Säljintäkter),\"-\")","v":"-"},{"$f":"IFERROR(IF(Rörelsekostnader[[#This Row],[Föregående period]]=Rörelsekostnader[[#This Row],[Aktuell period]],0,IF(Rörelsekostnader[[#This Row],[Aktuell period]]>Rörelsekostnader[[#This Row],[Föregående period]],ABS((Rörelsekostnader[[#This Row],[Aktuell period]]/Rörelsekostnader[[#This Row],[Föregående period]])-1),IF(AND(Rörelsekostnader[[#This Row],[Aktuell period]]<Rörelsekostnader[[#This Row],[Föregående period]],Rörelsekostnader[[#This Row],[Föregående period]]<0),-((Rörelsekostnader[[#This Row],[Aktuell period]]/Rörelsekostnader[[#This Row],[Föregående period]])-1),(Rörelsekostnader[[#This Row],[Aktuell period]]/Rörelsekostnader[[#This Row],[Föregående period]])-1))),\"-\")","v":{"v":0,"d":"0.00%"}},{"$f":"IFERROR(IF(Rörelsekostnader[[#This Row],[Budget]]=Rörelsekostnader[[#This Row],[Aktuell period]],0,IF(Rörelsekostnader[[#This Row],[Aktuell period]]>Rörelsekostnader[[#This Row],[Budget]],ABS((Rörelsekostnader[[#This Row],[Aktuell period]]/Rörelsekostnader[[#This Row],[Budget]])-1),IF(AND(Rörelsekostnader[[#This Row],[Aktuell period]]<Rörelsekostnader[[#This Row],[Budget]],Rörelsekostnader[[#This Row],[Budget]]<0),-((Rörelsekostnader[[#This Row],[Aktuell period]]/Rörelsekostnader[[#This Row],[Budget]])-1),(Rörelsekostnader[[#This Row],[Aktuell period]]/Rörelsekostnader[[#This Row],[Budget]])-1))),\"-\")","v":{"v":0,"d":"0.00%"}}]
[null,"Forskning och utveckling","Andra utgifter (specificera)",{"$nulls":3},{"$f":"IFERROR(IF(Säljintäkter=0,\"-\",Rörelsekostnader[Aktuell period]/Säljintäkter),\"-\")","v":"-"},{"$f":"IFERROR(IF(Rörelsekostnader[[#This Row],[Föregående period]]=Rörelsekostnader[[#This Row],[Aktuell period]],0,IF(Rörelsekostnader[[#This Row],[Aktuell period]]>Rörelsekostnader[[#This Row],[Föregående period]],ABS((Rörelsekostnader[[#This Row],[Aktuell period]]/Rörelsekostnader[[#This Row],[Föregående period]])-1),IF(AND(Rörelsekostnader[[#This Row],[Aktuell period]]<Rörelsekostnader[[#This Row],[Föregående period]],Rörelsekostnader[[#This Row],[Föregående period]]<0),-((Rörelsekostnader[[#This Row],[Aktuell period]]/Rörelsekostnader[[#This Row],[Föregående period]])-1),(Rörelsekostnader[[#This Row],[Aktuell period]]/Rörelsekostnader[[#This Row],[Föregående period]])-1))),\"-\")","v":{"v":0,"d":"0.00%"}},{"$f":"IFERROR(IF(Rörelsekostnader[[#This Row],[Budget]]=Rörelsekostnader[[#This Row],[Aktuell period]],0,IF(Rörelsekostnader[[#This Row],[Aktuell period]]>Rörelsekostnader[[#This Row],[Budget]],ABS((Rörelsekostnader[[#This Row],[Aktuell period]]/Rörelsekostnader[[#This Row],[Budget]])-1),IF(AND(Rörelsekostnader[[#This Row],[Aktuell period]]<Rörelsekostnader[[#This Row],[Budget]],Rörelsekostnader[[#This Row],[Budget]]<0),-((Rörelsekostnader[[#This Row],[Aktuell period]]/Rörelsekostnader[[#This Row],[Budget]])-1),(Rörelsekostnader[[#This Row],[Aktuell period]]/Rörelsekostnader[[#This Row],[Budget]])-1))),\"-\")","v":{"v":0,"d":"0.00%"}}]
[null,"Forskning och utveckling","Andra utgifter (specificera)",{"$nulls":3},{"$f":"IFERROR(IF(Säljintäkter=0,\"-\",Rörelsekostnader[Aktuell period]/Säljintäkter),\"-\")","v":"-"},{"$f":"IFERROR(IF(Rörelsekostnader[[#This Row],[Föregående period]]=Rörelsekostnader[[#This Row],[Aktuell period]],0,IF(Rörelsekostnader[[#This Row],[Aktuell period]]>Rörelsekostnader[[#This Row],[Föregående period]],ABS((Rörelsekostnader[[#This Row],[Aktuell period]]/Rörelsekostnader[[#This Row],[Föregående period]])-1),IF(AND(Rörelsekostnader[[#This Row],[Aktuell period]]<Rörelsekostnader[[#This Row],[Föregående period]],Rörelsekostnader[[#This Row],[Föregående period]]<0),-((Rörelsekostnader[[#This Row],[Aktuell period]]/Rörelsekostnader[[#This Row],[Föregående period]])-1),(Rörelsekostnader[[#This Row],[Aktuell period]]/Rörelsekostnader[[#This Row],[Föregående period]])-1))),\"-\")","v":{"v":0,"d":"0.00%"}},{"$f":"IFERROR(IF(Rörelsekostnader[[#This Row],[Budget]]=Rörelsekostnader[[#This Row],[Aktuell period]],0,IF(Rörelsekostnader[[#This Row],[Aktuell period]]>Rörelsekostnader[[#This Row],[Budget]],ABS((Rörelsekostnader[[#This Row],[Aktuell period]]/Rörelsekostnader[[#This Row],[Budget]])-1),IF(AND(Rörelsekostnader[[#This Row],[Aktuell period]]<Rörelsekostnader[[#This Row],[Budget]],Rörelsekostnader[[#This Row],[Budget]]<0),-((Rörelsekostnader[[#This Row],[Aktuell period]]/Rörelsekostnader[[#This Row],[Budget]])-1),(Rörelsekostnader[[#This Row],[Aktuell period]]/Rörelsekostnader[[#This Row],[Budget]])-1))),\"-\")","v":{"v":0,"d":"0.00%"}}]
[null,"Allmänna och administrativa","Löner",{"$nulls":3},{"$f":"IFERROR(IF(Säljintäkter=0,\"-\",Rörelsekostnader[Aktuell period]/Säljintäkter),\"-\")","v":"-"},{"$f":"IFERROR(IF(Rörelsekostnader[[#This Row],[Föregående period]]=Rörelsekostnader[[#This Row],[Aktuell period]],0,IF(Rörelsekostnader[[#This Row],[Aktuell period]]>Rörelsekostnader[[#This Row],[Föregående period]],ABS((Rörelsekostnader[[#This Row],[Aktuell period]]/Rörelsekostnader[[#This Row],[Föregående period]])-1),IF(AND(Rörelsekostnader[[#This Row],[Aktuell period]]<Rörelsekostnader[[#This Row],[Föregående period]],Rörelsekostnader[[#This Row],[Föregående period]]<0),-((Rörelsekostnader[[#This Row],[Aktuell period]]/Rörelsekostnader[[#This Row],[Föregående period]])-1),(Rörelsekostnader[[#This Row],[Aktuell period]]/Rörelsekostnader[[#This Row],[Föregående period]])-1))),\"-\")","v":{"v":0,"d":"0.00%"}},{"$f":"IFERROR(IF(Rörelsekostnader[[#This Row],[Budget]]=Rörelsekostnader[[#This Row],[Aktuell period]],0,IF(Rörelsekostnader[[#This Row],[Aktuell period]]>Rörelsekostnader[[#This Row],[Budget]],ABS((Rörelsekostnader[[#This Row],[Aktuell period]]/Rörelsekostnader[[#This Row],[Budget]])-1),IF(AND(Rörelsekostnader[[#This Row],[Aktuell period]]<Rörelsekostnader[[#This Row],[Budget]],Rörelsekostnader[[#This Row],[Budget]]<0),-((Rörelsekostnader[[#This Row],[Aktuell period]]/Rörelsekostnader[[#This Row],[Budget]])-1),(Rörelsekostnader[[#This Row],[Aktuell period]]/Rörelsekostnader[[#This Row],[Budget]])-1))),\"-\")","v":{"v":0,"d":"0.00%"}}]
[null,"Allmänna och administrativa","Externa tjänster",{"$nulls":3},{"$f":"IFERROR(IF(Säljintäkter=0,\"-\",Rörelsekostnader[Aktuell period]/Säljintäkter),\"-\")","v":"-"},{"$f":"IFERROR(IF(Rörelsekostnader[[#This Row],[Föregående period]]=Rörelsekostnader[[#This Row],[Aktuell period]],0,IF(Rörelsekostnader[[#This Row],[Aktuell period]]>Rörelsekostnader[[#This Row],[Föregående period]],ABS((Rörelsekostnader[[#This Row],[Aktuell period]]/Rörelsekostnader[[#This Row],[Föregående period]])-1),IF(AND(Rörelsekostnader[[#This Row],[Aktuell period]]<Rörelsekostnader[[#This Row],[Föregående period]],Rörelsekostnader[[#This Row],[Föregående period]]<0),-((Rörelsekostnader[[#This Row],[Aktuell period]]/Rörelsekostnader[[#This Row],[Föregående period]])-1),(Rörelsekostnader[[#This Row],[Aktuell period]]/Rörelsekostnader[[#This Row],[Föregående period]])-1))),\"-\")","v":{"v":0,"d":"0.00%"}},{"$f":"IFERROR(IF(Rörelsekostnader[[#This Row],[Budget]]=Rörelsekostnader[[#This Row],[Aktuell period]],0,IF(Rörelsekostnader[[#This Row],[Aktuell period]]>Rörelsekostnader[[#This Row],[Budget]],ABS((Rörelsekostnader[[#This Row],[Aktuell period]]/Rörelsekostnader[[#This Row],[Budget]])-1),IF(AND(Rörelsekostnader[[#This Row],[Aktuell period]]<Rörelsekostnader[[#This Row],[Budget]],Rörelsekostnader[[#This Row],[Budget]]<0),-((Rörelsekostnader[[#This Row],[Aktuell period]]/Rörelsekostnader[[#This Row],[Budget]])-1),(Rörelsekostnader[[#This Row],[Aktuell period]]/Rörelsekostnader[[#This Row],[Budget]])-1))),\"-\")","v":{"v":0,"d":"0.00%"}}]
[null,"Allmänna och administrativa","Material",{"$nulls":3},{"$f":"IFERROR(IF(Säljintäkter=0,\"-\",Rörelsekostnader[Aktuell period]/Säljintäkter),\"-\")","v":"-"},{"$f":"IFERROR(IF(Rörelsekostnader[[#This Row],[Föregående period]]=Rörelsekostnader[[#This Row],[Aktuell period]],0,IF(Rörelsekostnader[[#This Row],[Aktuell period]]>Rörelsekostnader[[#This Row],[Föregående period]],ABS((Rörelsekostnader[[#This Row],[Aktuell period]]/Rörelsekostnader[[#This Row],[Föregående period]])-1),IF(AND(Rörelsekostnader[[#This Row],[Aktuell period]]<Rörelsekostnader[[#This Row],[Föregående period]],Rörelsekostnader[[#This Row],[Föregående period]]<0),-((Rörelsekostnader[[#This Row],[Aktuell period]]/Rörelsekostnader[[#This Row],[Föregående period]])-1),(Rörelsekostnader[[#This Row],[Aktuell period]]/Rörelsekostnader[[#This Row],[Föregående period]])-1))),\"-\")","v":{"v":0,"d":"0.00%"}},{"$f":"IFERROR(IF(Rörelsekostnader[[#This Row],[Budget]]=Rörelsekostnader[[#This Row],[Aktuell period]],0,IF(Rörelsekostnader[[#This Row],[Aktuell period]]>Rörelsekostnader[[#This Row],[Budget]],ABS((Rörelsekostnader[[#This Row],[Aktuell period]]/Rörelsekostnader[[#This Row],[Budget]])-1),IF(AND(Rörelsekostnader[[#This Row],[Aktuell period]]<Rörelsekostnader[[#This Row],[Budget]],Rörelsekostnader[[#This Row],[Budget]]<0),-((Rörelsekostnader[[#This Row],[Aktuell period]]/Rörelsekostnader[[#This Row],[Budget]])-1),(Rörelsekostnader[[#This Row],[Aktuell period]]/Rörelsekostnader[[#This Row],[Budget]])-1))),\"-\")","v":{"v":0,"d":"0.00%"}}]
[null,"Allmänna och administrativa","Måltider och nöjen",{"$nulls":3},{"$f":"IFERROR(IF(Säljintäkter=0,\"-\",Rörelsekostnader[Aktuell period]/Säljintäkter),\"-\")","v":"-"},{"$f":"IFERROR(IF(Rörelsekostnader[[#This Row],[Föregående period]]=Rörelsekostnader[[#This Row],[Aktuell period]],0,IF(Rörelsekostnader[[#This Row],[Aktuell period]]>Rörelsekostnader[[#This Row],[Föregående period]],ABS((Rörelsekostnader[[#This Row],[Aktuell period]]/Rörelsekostnader[[#This Row],[Föregående period]])-1),IF(AND(Rörelsekostnader[[#This Row],[Aktuell period]]<Rörelsekostnader[[#This Row],[Föregående period]],Rörelsekostnader[[#This Row],[Föregående period]]<0),-((Rörelsekostnader[[#This Row],[Aktuell period]]/Rörelsekostnader[[#This Row],[Föregående period]])-1),(Rörelsekostnader[[#This Row],[Aktuell period]]/Rörelsekostnader[[#This Row],[Föregående period]])-1))),\"-\")","v":{"v":0,"d":"0.00%"}},{"$f":"IFERROR(IF(Rörelsekostnader[[#This Row],[Budget]]=Rörelsekostnader[[#This Row],[Aktuell period]],0,IF(Rörelsekostnader[[#This Row],[Aktuell period]]>Rörelsekostnader[[#This Row],[Budget]],ABS((Rörelsekostnader[[#This Row],[Aktuell period]]/Rörelsekostnader[[#This Row],[Budget]])-1),IF(AND(Rörelsekostnader[[#This Row],[Aktuell period]]<Rörelsekostnader[[#This Row],[Budget]],Rörelsekostnader[[#This Row],[Budget]]<0),-((Rörelsekostnader[[#This Row],[Aktuell period]]/Rörelsekostnader[[#This Row],[Budget]])-1),(Rörelsekostnader[[#This Row],[Aktuell period]]/Rörelsekostnader[[#This Row],[Budget]])-1))),\"-\")","v":{"v":0,"d":"0.00%"}}]
[null,"Allmänna och administrativa","Hyra",{"$nulls":3},{"$f":"IFERROR(IF(Säljintäkter=0,\"-\",Rörelsekostnader[Aktuell period]/Säljintäkter),\"-\")","v":"-"},{"$f":"IFERROR(IF(Rörelsekostnader[[#This Row],[Föregående period]]=Rörelsekostnader[[#This Row],[Aktuell period]],0,IF(Rörelsekostnader[[#This Row],[Aktuell period]]>Rörelsekostnader[[#This Row],[Föregående period]],ABS((Rörelsekostnader[[#This Row],[Aktuell period]]/Rörelsekostnader[[#This Row],[Föregående period]])-1),IF(AND(Rörelsekostnader[[#This Row],[Aktuell period]]<Rörelsekostnader[[#This Row],[Föregående period]],Rörelsekostnader[[#This Row],[Föregående period]]<0),-((Rörelsekostnader[[#This Row],[Aktuell period]]/Rörelsekostnader[[#This Row],[Föregående period]])-1),(Rörelsekostnader[[#This Row],[Aktuell period]]/Rörelsekostnader[[#This Row],[Föregående period]])-1))),\"-\")","v":{"v":0,"d":"0.00%"}},{"$f":"IFERROR(IF(Rörelsekostnader[[#This Row],[Budget]]=Rörelsekostnader[[#This Row],[Aktuell period]],0,IF(Rörelsekostnader[[#This Row],[Aktuell period]]>Rörelsekostnader[[#This Row],[Budget]],ABS((Rörelsekostnader[[#This Row],[Aktuell period]]/Rörelsekostnader[[#This Row],[Budget]])-1),IF(AND(Rörelsekostnader[[#This Row],[Aktuell period]]<Rörelsekostnader[[#This Row],[Budget]],Rörelsekostnader[[#This Row],[Budget]]<0),-((Rörelsekostnader[[#This Row],[Aktuell period]]/Rörelsekostnader[[#This Row],[Budget]])-1),(Rörelsekostnader[[#This Row],[Aktuell period]]/Rörelsekostnader[[#This Row],[Budget]])-1))),\"-\")","v":{"v":0,"d":"0.00%"}}]
[null,"Allmänna och administrativa","Telefon",{"$nulls":3},{"$f":"IFERROR(IF(Säljintäkter=0,\"-\",Rörelsekostnader[Aktuell period]/Säljintäkter),\"-\")","v":"-"},{"$f":"IFERROR(IF(Rörelsekostnader[[#This Row],[Föregående period]]=Rörelsekostnader[[#This Row],[Aktuell period]],0,IF(Rörelsekostnader[[#This Row],[Aktuell period]]>Rörelsekostnader[[#This Row],[Föregående period]],ABS((Rörelsekostnader[[#This Row],[Aktuell period]]/Rörelsekostnader[[#This Row],[Föregående period]])-1),IF(AND(Rörelsekostnader[[#This Row],[Aktuell period]]<Rörelsekostnader[[#This Row],[Föregående period]],Rörelsekostnader[[#This Row],[Föregående period]]<0),-((Rörelsekostnader[[#This Row],[Aktuell period]]/Rörelsekostnader[[#This Row],[Föregående period]])-1),(Rörelsekostnader[[#This Row],[Aktuell period]]/Rörelsekostnader[[#This Row],[Föregående period]])-1))),\"-\")","v":{"v":0,"d":"0.00%"}},{"$f":"IFERROR(IF(Rörelsekostnader[[#This Row],[Budget]]=Rörelsekostnader[[#This Row],[Aktuell period]],0,IF(Rörelsekostnader[[#This Row],[Aktuell period]]>Rörelsekostnader[[#This Row],[Budget]],ABS((Rörelsekostnader[[#This Row],[Aktuell period]]/Rörelsekostnader[[#This Row],[Budget]])-1),IF(AND(Rörelsekostnader[[#This Row],[Aktuell period]]<Rörelsekostnader[[#This Row],[Budget]],Rörelsekostnader[[#This Row],[Budget]]<0),-((Rörelsekostnader[[#This Row],[Aktuell period]]/Rörelsekostnader[[#This Row],[Budget]])-1),(Rörelsekostnader[[#This Row],[Aktuell period]]/Rörelsekostnader[[#This Row],[Budget]])-1))),\"-\")","v":{"v":0,"d":"0.00%"}}]
[null,"Allmänna och administrativa","Kraftförsörjning",{"$nulls":3},{"$f":"IFERROR(IF(Säljintäkter=0,\"-\",Rörelsekostnader[Aktuell period]/Säljintäkter),\"-\")","v":"-"},{"$f":"IFERROR(IF(Rörelsekostnader[[#This Row],[Föregående period]]=Rörelsekostnader[[#This Row],[Aktuell period]],0,IF(Rörelsekostnader[[#This Row],[Aktuell period]]>Rörelsekostnader[[#This Row],[Föregående period]],ABS((Rörelsekostnader[[#This Row],[Aktuell period]]/Rörelsekostnader[[#This Row],[Föregående period]])-1),IF(AND(Rörelsekostnader[[#This Row],[Aktuell period]]<Rörelsekostnader[[#This Row],[Föregående period]],Rörelsekostnader[[#This Row],[Föregående period]]<0),-((Rörelsekostnader[[#This Row],[Aktuell period]]/Rörelsekostnader[[#This Row],[Föregående period]])-1),(Rörelsekostnader[[#This Row],[Aktuell period]]/Rörelsekostnader[[#This Row],[Föregående period]])-1))),\"-\")","v":{"v":0,"d":"0.00%"}},{"$f":"IFERROR(IF(Rörelsekostnader[[#This Row],[Budget]]=Rörelsekostnader[[#This Row],[Aktuell period]],0,IF(Rörelsekostnader[[#This Row],[Aktuell period]]>Rörelsekostnader[[#This Row],[Budget]],ABS((Rörelsekostnader[[#This Row],[Aktuell period]]/Rörelsekostnader[[#This Row],[Budget]])-1),IF(AND(Rörelsekostnader[[#This Row],[Aktuell period]]<Rörelsekostnader[[#This Row],[Budget]],Rörelsekostnader[[#This Row],[Budget]]<0),-((Rörelsekostnader[[#This Row],[Aktuell period]]/Rörelsekostnader[[#This Row],[Budget]])-1),(Rörelsekostnader[[#This Row],[Aktuell period]]/Rörelsekostnader[[#This Row],[Budget]])-1))),\"-\")","v":{"v":0,"d":"0.00%"}}]
[null,"Allmänna och administrativa","Avskrivning",{"$nulls":3},{"$f":"IFERROR(IF(Säljintäkter=0,\"-\",Rörelsekostnader[Aktuell period]/Säljintäkter),\"-\")","v":"-"},{"$f":"IFERROR(IF(Rörelsekostnader[[#This Row],[Föregående period]]=Rörelsekostnader[[#This Row],[Aktuell period]],0,IF(Rörelsekostnader[[#This Row],[Aktuell period]]>Rörelsekostnader[[#This Row],[Föregående period]],ABS((Rörelsekostnader[[#This Row],[Aktuell period]]/Rörelsekostnader[[#This Row],[Föregående period]])-1),IF(AND(Rörelsekostnader[[#This Row],[Aktuell period]]<Rörelsekostnader[[#This Row],[Föregående period]],Rörelsekostnader[[#This Row],[Föregående period]]<0),-((Rörelsekostnader[[#This Row],[Aktuell period]]/Rörelsekostnader[[#This Row],[Föregående period]])-1),(Rörelsekostnader[[#This Row],[Aktuell period]]/Rörelsekostnader[[#This Row],[Föregående period]])-1))),\"-\")","v":{"v":0,"d":"0.00%"}},{"$f":"IFERROR(IF(Rörelsekostnader[[#This Row],[Budget]]=Rörelsekostnader[[#This Row],[Aktuell period]],0,IF(Rörelsekostnader[[#This Row],[Aktuell period]]>Rörelsekostnader[[#This Row],[Budget]],ABS((Rörelsekostnader[[#This Row],[Aktuell period]]/Rörelsekostnader[[#This Row],[Budget]])-1),IF(AND(Rörelsekostnader[[#This Row],[Aktuell period]]<Rörelsekostnader[[#This Row],[Budget]],Rörelsekostnader[[#This Row],[Budget]]<0),-((Rörelsekostnader[[#This Row],[Aktuell period]]/Rörelsekostnader[[#This Row],[Budget]])-1),(Rörelsekostnader[[#This Row],[Aktuell period]]/Rörelsekostnader[[#This Row],[Budget]])-1))),\"-\")","v":{"v":0,"d":"0.00%"}}]
[null,"Allmänna och administrativa","Försäkring",{"$nulls":3},{"$f":"IFERROR(IF(Säljintäkter=0,\"-\",Rörelsekostnader[Aktuell period]/Säljintäkter),\"-\")","v":"-"},{"$f":"IFERROR(IF(Rörelsekostnader[[#This Row],[Föregående period]]=Rörelsekostnader[[#This Row],[Aktuell period]],0,IF(Rörelsekostnader[[#This Row],[Aktuell period]]>Rörelsekostnader[[#This Row],[Föregående period]],ABS((Rörelsekostnader[[#This Row],[Aktuell period]]/Rörelsekostnader[[#This Row],[Föregående period]])-1),IF(AND(Rörelsekostnader[[#This Row],[Aktuell period]]<Rörelsekostnader[[#This Row],[Föregående period]],Rörelsekostnader[[#This Row],[Föregående period]]<0),-((Rörelsekostnader[[#This Row],[Aktuell period]]/Rörelsekostnader[[#This Row],[Föregående period]])-1),(Rörelsekostnader[[#This Row],[Aktuell period]]/Rörelsekostnader[[#This Row],[Föregående period]])-1))),\"-\")","v":{"v":0,"d":"0.00%"}},{"$f":"IFERROR(IF(Rörelsekostnader[[#This Row],[Budget]]=Rörelsekostnader[[#This Row],[Aktuell period]],0,IF(Rörelsekostnader[[#This Row],[Aktuell period]]>Rörelsekostnader[[#This Row],[Budget]],ABS((Rörelsekostnader[[#This Row],[Aktuell period]]/Rörelsekostnader[[#This Row],[Budget]])-1),IF(AND(Rörelsekostnader[[#This Row],[Aktuell period]]<Rörelsekostnader[[#This Row],[Budget]],Rörelsekostnader[[#This Row],[Budget]]<0),-((Rörelsekostnader[[#This Row],[Aktuell period]]/Rörelsekostnader[[#This Row],[Budget]])-1),(Rörelsekostnader[[#This Row],[Aktuell period]]/Rörelsekostnader[[#This Row],[Budget]])-1))),\"-\")","v":{"v":0,"d":"0.00%"}}]
[null,"Allmänna och administrativa","Reparationer och underhåll",{"$nulls":3},{"$f":"IFERROR(IF(Säljintäkter=0,\"-\",Rörelsekostnader[Aktuell period]/Säljintäkter),\"-\")","v":"-"},{"$f":"IFERROR(IF(Rörelsekostnader[[#This Row],[Föregående period]]=Rörelsekostnader[[#This Row],[Aktuell period]],0,IF(Rörelsekostnader[[#This Row],[Aktuell period]]>Rörelsekostnader[[#This Row],[Föregående period]],ABS((Rörelsekostnader[[#This Row],[Aktuell period]]/Rörelsekostnader[[#This Row],[Föregående period]])-1),IF(AND(Rörelsekostnader[[#This Row],[Aktuell period]]<Rörelsekostnader[[#This Row],[Föregående period]],Rörelsekostnader[[#This Row],[Föregående period]]<0),-((Rörelsekostnader[[#This Row],[Aktuell period]]/Rörelsekostnader[[#This Row],[Föregående period]])-1),(Rörelsekostnader[[#This Row],[Aktuell period]]/Rörelsekostnader[[#This Row],[Föregående period]])-1))),\"-\")","v":{"v":0,"d":"0.00%"}},{"$f":"IFERROR(IF(Rörelsekostnader[[#This Row],[Budget]]=Rörelsekostnader[[#This Row],[Aktuell period]],0,IF(Rörelsekostnader[[#This Row],[Aktuell period]]>Rörelsekostnader[[#This Row],[Budget]],ABS((Rörelsekostnader[[#This Row],[Aktuell period]]/Rörelsekostnader[[#This Row],[Budget]])-1),IF(AND(Rörelsekostnader[[#This Row],[Aktuell period]]<Rörelsekostnader[[#This Row],[Budget]],Rörelsekostnader[[#This Row],[Budget]]<0),-((Rörelsekostnader[[#This Row],[Aktuell period]]/Rörelsekostnader[[#This Row],[Budget]])-1),(Rörelsekostnader[[#This Row],[Aktuell period]]/Rörelsekostnader[[#This Row],[Budget]])-1))),\"-\")","v":{"v":0,"d":"0.00%"}}]
[null,"Allmänna och administrativa","Andra utgifter (specificera)",{"$nulls":3},{"$f":"IFERROR(IF(Säljintäkter=0,\"-\",Rörelsekostnader[Aktuell period]/Säljintäkter),\"-\")","v":"-"},{"$f":"IFERROR(IF(Rörelsekostnader[[#This Row],[Föregående period]]=Rörelsekostnader[[#This Row],[Aktuell period]],0,IF(Rörelsekostnader[[#This Row],[Aktuell period]]>Rörelsekostnader[[#This Row],[Föregående period]],ABS((Rörelsekostnader[[#This Row],[Aktuell period]]/Rörelsekostnader[[#This Row],[Föregående period]])-1),IF(AND(Rörelsekostnader[[#This Row],[Aktuell period]]<Rörelsekostnader[[#This Row],[Föregående period]],Rörelsekostnader[[#This Row],[Föregående period]]<0),-((Rörelsekostnader[[#This Row],[Aktuell period]]/Rörelsekostnader[[#This Row],[Föregående period]])-1),(Rörelsekostnader[[#This Row],[Aktuell period]]/Rörelsekostnader[[#This Row],[Föregående period]])-1))),\"-\")","v":{"v":0,"d":"0.00%"}},{"$f":"IFERROR(IF(Rörelsekostnader[[#This Row],[Budget]]=Rörelsekostnader[[#This Row],[Aktuell period]],0,IF(Rörelsekostnader[[#This Row],[Aktuell period]]>Rörelsekostnader[[#This Row],[Budget]],ABS((Rörelsekostnader[[#This Row],[Aktuell period]]/Rörelsekostnader[[#This Row],[Budget]])-1),IF(AND(Rörelsekostnader[[#This Row],[Aktuell period]]<Rörelsekostnader[[#This Row],[Budget]],Rörelsekostnader[[#This Row],[Budget]]<0),-((Rörelsekostnader[[#This Row],[Aktuell period]]/Rörelsekostnader[[#This Row],[Budget]])-1),(Rörelsekostnader[[#This Row],[Aktuell period]]/Rörelsekostnader[[#This Row],[Budget]])-1))),\"-\")","v":{"v":0,"d":"0.00%"}}]
[null,"Allmänna och administrativa","Andra utgifter (specificera)",{"$nulls":3},{"$f":"IFERROR(IF(Säljintäkter=0,\"-\",Rörelsekostnader[Aktuell period]/Säljintäkter),\"-\")","v":"-"},{"$f":"IFERROR(IF(Rörelsekostnader[[#This Row],[Föregående period]]=Rörelsekostnader[[#This Row],[Aktuell period]],0,IF(Rörelsekostnader[[#This Row],[Aktuell period]]>Rörelsekostnader[[#This Row],[Föregående period]],ABS((Rörelsekostnader[[#This Row],[Aktuell period]]/Rörelsekostnader[[#This Row],[Föregående period]])-1),IF(AND(Rörelsekostnader[[#This Row],[Aktuell period]]<Rörelsekostnader[[#This Row],[Föregående period]],Rörelsekostnader[[#This Row],[Föregående period]]<0),-((Rörelsekostnader[[#This Row],[Aktuell period]]/Rörelsekostnader[[#This Row],[Föregående period]])-1),(Rörelsekostnader[[#This Row],[Aktuell period]]/Rörelsekostnader[[#This Row],[Föregående period]])-1))),\"-\")","v":{"v":0,"d":"0.00%"}},{"$f":"IFERROR(IF(Rörelsekostnader[[#This Row],[Budget]]=Rörelsekostnader[[#This Row],[Aktuell period]],0,IF(Rörelsekostnader[[#This Row],[Aktuell period]]>Rörelsekostnader[[#This Row],[Budget]],ABS((Rörelsekostnader[[#This Row],[Aktuell period]]/Rörelsekostnader[[#This Row],[Budget]])-1),IF(AND(Rörelsekostnader[[#This Row],[Aktuell period]]<Rörelsekostnader[[#This Row],[Budget]],Rörelsekostnader[[#This Row],[Budget]]<0),-((Rörelsekostnader[[#This Row],[Aktuell period]]/Rörelsekostnader[[#This Row],[Budget]])-1),(Rörelsekostnader[[#This Row],[Aktuell period]]/Rörelsekostnader[[#This Row],[Budget]])-1))),\"-\")","v":{"v":0,"d":"0.00%"}}]
[null,"Totala rörelsekostnader",null,{"$f":"SUBTOTAL(109,Rörelsekostnader[Föregående period])","v":0},{"$f":"SUBTOTAL(109,Rörelsekostnader[Budget])","v":0},{"$f":"SUBTOTAL(109,Rörelsekostnader[Aktuell period])","v":0},{"$f":"SUBTOTAL(109,Rörelsekostnader[Aktuell period som % av försäljning])","v":{"v":0,"d":"0.00%"}},{"$f":"SUBTOTAL(109,Rörelsekostnader[% ändring från föregående period])","v":{"v":0,"d":"0.00%"}},{"$f":"SUBTOTAL(109,Rörelsekostnader[% ändring från budget])","v":{"v":0,"d":"0.00%"}}]

{"sheet":"Skatter","index":4,"n_rows":10,"n_cols":9,"rows_kept":10,"merged":[[0,7,2,8]]}
[null,{"$f":"Arbetsbok_Rubrik","v":"Vinst-/förlustrapport"}]
[null,{"$f":"Företagsnamn","v":"Företagets namn"},"Anges i 000s"]
[null,"Skatter",{"$f":"IFERROR(Skatter[[#Totals],[Aktuell period]],\"-\")","v":0}]
[null,"Typ","Beskrivning","Föregående period","Budget","Aktuell period","Aktuell period som % av försäljning","% ändring från föregående period","% ändring från budget"]
[null,"Skatter","Inkomstskatt",{"$nulls":3},{"$f":"IFERROR(IF(Säljintäkter=0,\"-\",Skatter[Aktuell period]/Säljintäkter),\"-\")","v":"-"},{"$f":"IFERROR(IF(Skatter[[#This Row],[Föregående period]]=Skatter[[#This Row],[Aktuell period]],0,IF(Skatter[[#This Row],[Aktuell period]]>Skatter[[#This Row],[Föregående period]],ABS((Skatter[[#This Row],[Aktuell period]]/Skatter[[#This Row],[Föregående period]])-1),IF(AND(Skatter[[#This Row],[Aktuell period]]<Skatter[[#This Row],[Föregående period]],Skatter[[#This Row],[Föregående period]]<0),-((Skatter[[#This Row],[Aktuell period]]/Skatter[[#This Row],[Föregående period]])-1),(Skatter[[#This Row],[Aktuell period]]/Skatter[[#This Row],[Föregående period]])-1))),\"-\")","v":{"v":0,"d":"0.00%"}},{"$f":"IFERROR(IF(Skatter[[#This Row],[Budget]]=Skatter[[#This Row],[Aktuell period]],0,IF(Skatter[[#This Row],[Aktuell period]]>Skatter[[#This Row],[Budget]],ABS((Skatter[[#This Row],[Aktuell period]]/Skatter[[#This Row],[Budget]])-1),IF(AND(Skatter[[#This Row],[Aktuell period]]<Skatter[[#This Row],[Budget]],Skatter[[#This Row],[Budget]]<0),-((Skatter[[#This Row],[Aktuell period]]/Skatter[[#This Row],[Budget]])-1),(Skatter[[#This Row],[Aktuell period]]/Skatter[[#This Row],[Budget]])-1))),\"-\")","v":{"v":0,"d":"0.00%"}}]
[null,"Skatter","Personalskatt",{"$nulls":3},{"$f":"IFERROR(IF(Säljintäkter=0,\"-\",Skatter[Aktuell period]/Säljintäkter),\"-\")","v":"-"},{"$f":"IFERROR(IF(Skatter[[#This Row],[Föregående period]]=Skatter[[#This Row],[Aktuell period]],0,IF(Skatter[[#This Row],[Aktuell period]]>Skatter[[#This Row],[Föregående period]],ABS((Skatter[[#This Row],[Aktuell period]]/Skatter[[#This Row],[Föregående period]])-1),IF(AND(Skatter[[#This Row],[Aktuell period]]<Skatter[[#This Row],[Föregående period]],Skatter[[#This Row],[Föregående period]]<0),-((Skatter[[#This Row],[Aktuell period]]/Skatter[[#This Row],[Föregående period]])-1),(Skatter[[#This Row],[Aktuell period]]/Skatter[[#This Row],[Föregående period]])-1))),\"-\")","v":{"v":0,"d":"0.00%"}},{"$f":"IFERROR(IF(Skatter[[#This Row],[Budget]]=Skatter[[#This Row],[Aktuell period]],0,IF(Skatter[[#This Row],[Aktuell period]]>Skatter[[#This Row],[Budget]],ABS((Skatter[[#This Row],[Aktuell period]]/Skatter[[#This Row],[Budget]])-1),IF(AND(Skatter[[#This Row],[Aktuell period]]<Skatter[[#This Row],[Budget]],Skatter[[#This Row],[Budget]]<0),-((Skatter[[#This Row],[Aktuell period]]/Skatter[[#This Row],[Budget]])-1),(Skatter[[#This Row],[Aktuell period]]/Skatter[[#This Row],[Budget]])-1))),\"-\")","v":{"v":0,"d":"0.00%"}}]
[null,"Skatter","Fastighetsskatt",{"$nulls":3},{"$f":"IFERROR(IF(Säljintäkter=0,\"-\",Skatter[Aktuell period]/Säljintäkter),\"-\")","v":"-"},{"$f":"IFERROR(IF(Skatter[[#This Row],[Föregående period]]=Skatter[[#This Row],[Aktuell period]],0,IF(Skatter[[#This Row],[Aktuell period]]>Skatter[[#This Row],[Föregående period]],ABS((Skatter[[#This Row],[Aktuell period]]/Skatter[[#This Row],[Föregående period]])-1),IF(AND(Skatter[[#This Row],[Aktuell period]]<Skatter[[#This Row],[Föregående period]],Skatter[[#This Row],[Föregående period]]<0),-((Skatter[[#This Row],[Aktuell period]]/Skatter[[#This Row],[Föregående period]])-1),(Skatter[[#This Row],[Aktuell period]]/Skatter[[#This Row],[Föregående period]])-1))),\"-\")","v":{"v":0,"d":"0.00%"}},{"$f":"IFERROR(IF(Skatter[[#This Row],[Budget]]=Skatter[[#This Row],[Aktuell period]],0,IF(Skatter[[#This Row],[Aktuell period]]>Skatter[[#This Row],[Budget]],ABS((Skatter[[#This Row],[Aktuell period]]/Skatter[[#This Row],[Budget]])-1),IF(AND(Skatter[[#This Row],[Aktuell period]]<Skatter[[#This Row],[Budget]],Skatter[[#This Row],[Budget]]<0),-((Skatter[[#This Row],[Aktuell period]]/Skatter[[#This Row],[Budget]])-1),(Skatter[[#This Row],[Aktuell period]]/Skatter[[#This Row],[Budget]])-1))),\"-\")","v":{"v":0,"d":"0.00%"}}]
[null,"Skatter","Övriga skatter (specificera)",{"$nulls":3},{"$f":"IFERROR(IF(Säljintäkter=0,\"-\",Skatter[Aktuell period]/Säljintäkter),\"-\")","v":"-"},{"$f":"IFERROR(IF(Skatter[[#This Row],[Föregående period]]=Skatter[[#This Row],[Aktuell period]],0,IF(Skatter[[#This Row],[Aktuell period]]>Skatter[[#This Row],[Föregående period]],ABS((Skatter[[#This Row],[Aktuell period]]/Skatter[[#This Row],[Föregående period]])-1),IF(AND(Skatter[[#This Row],[Aktuell period]]<Skatter[[#This Row],[Föregående period]],Skatter[[#This Row],[Föregående period]]<0),-((Skatter[[#This Row],[Aktuell period]]/Skatter[[#This Row],[Föregående period]])-1),(Skatter[[#This Row],[Aktuell period]]/Skatter[[#This Row],[Föregående period]])-1))),\"-\")","v":{"v":0,"d":"0.00%"}},{"$f":"IFERROR(IF(Skatter[[#This Row],[Budget]]=Skatter[[#This Row],[Aktuell period]],0,IF(Skatter[[#This Row],[Aktuell period]]>Skatter[[#This Row],[Budget]],ABS((Skatter[[#This Row],[Aktuell period]]/Skatter[[#This Row],[Budget]])-1),IF(AND(Skatter[[#This Row],[Aktuell period]]<Skatter[[#This Row],[Budget]],Skatter[[#This Row],[Budget]]<0),-((Skatter[[#This Row],[Aktuell period]]/Skatter[[#This Row],[Budget]])-1),(Skatter[[#This Row],[Aktuell period]]/Skatter[[#This Row],[Budget]])-1))),\"-\")","v":{"v":0,"d":"0.00%"}}]
[null,"Skatter","Övriga skatter (specificera)",{"$nulls":3},{"$f":"IFERROR(IF(Säljintäkter=0,\"-\",Skatter[Aktuell period]/Säljintäkter),\"-\")","v":"-"},{"$f":"IFERROR(IF(Skatter[[#This Row],[Föregående period]]=Skatter[[#This Row],[Aktuell period]],0,IF(Skatter[[#This Row],[Aktuell period]]>Skatter[[#This Row],[Föregående period]],ABS((Skatter[[#This Row],[Aktuell period]]/Skatter[[#This Row],[Föregående period]])-1),IF(AND(Skatter[[#This Row],[Aktuell period]]<Skatter[[#This Row],[Föregående period]],Skatter[[#This Row],[Föregående period]]<0),-((Skatter[[#This Row],[Aktuell period]]/Skatter[[#This Row],[Föregående period]])-1),(Skatter[[#This Row],[Aktuell period]]/Skatter[[#This Row],[Föregående period]])-1))),\"-\")","v":{"v":0,"d":"0.00%"}},{"$f":"IFERROR(IF(Skatter[[#This Row],[Budget]]=Skatter[[#This Row],[Aktuell period]],0,IF(Skatter[[#This Row],[Aktuell period]]>Skatter[[#This Row],[Budget]],ABS((Skatter[[#This Row],[Aktuell period]]/Skatter[[#This Row],[Budget]])-1),IF(AND(Skatter[[#This Row],[Aktuell period]]<Skatter[[#This Row],[Budget]],Skatter[[#This Row],[Budget]]<0),-((Skatter[[#This Row],[Aktuell period]]/Skatter[[#This Row],[Budget]])-1),(Skatter[[#This Row],[Aktuell period]]/Skatter[[#This Row],[Budget]])-1))),\"-\")","v":{"v":0,"d":"0.00%"}}]
[null,"Total skatt",null,{"$f":"SUBTOTAL(109,Skatter[Föregående period])","v":0},{"$f":"SUBTOTAL(109,Skatter[Budget])","v":0},{"$f":"SUBTOTAL(109,Skatter[Aktuell period])","v":0},{"$f":"IFERROR(SUBTOTAL(109,Skatter[Aktuell period som % av försäljning]),\"-\")","v":{"v":0,"d":"0.00%"}},{"$f":"SUBTOTAL(109,Skatter[% ändring från föregående period])","v":{"v":0,"d":"0.00%"}},{"$f":"SUBTOTAL(109,Skatter[% ändring från budget])","v":{"v":0,"d":"0.00%"}}]

{"sheet":"Kategorier","index":5,"n_rows":8,"n_cols":2,"rows_kept":8}
[null,"Kategorier"]
[null,"Säljintäkter"]
[null,"Försäljningskostnad"]
[null,"Intäkter"]
[null,"Försäljning och marknadsföring"]
[null,"Forskning och utveckling"]
[null,"Allmänna och administrativa"]
[null,"Skatter"]